[Event "Titled Tuesday Blitz January 03 Early 2023"]
[White "Ginzburg, Yakov"]
[Black "Bortnyk, Olexandr"]
[WhiteFideId "4157176"]
[BlackFideId "14120828"]
[WhiteElo "2405"]
[BlackElo "2605"]
[Result "0-1"]
[Round "04"]
[TimeControl "180+2"]
[Date "2023.01.03"]
[WhiteClock "0:00:06"]
[BlackClock "0:01:07"]

1. e4 {[%clk 0:02:56]}  Nf6 {[%clk 0:02:59]} 2. Nc3 {[%clk 0:02:55]}  d5 {[%clk 0:02:59]} 3. e5 {[%clk 0:02:55]}  Nfd7 {[%clk 0:02:59]} 4. d4 {[%clk 0:02:47]}  c5 {[%clk 0:02:59]} 5. Nxd5 {[%clk 0:02:40]}  cxd4 {[%clk 0:02:58]} 6. e6 {[%clk 0:01:51]}  Qa5+ {[%clk 0:02:54]} 7. c3 {[%clk 0:01:32]}  Qxd5 {[%clk 0:02:46]} 8. exd7+ {[%clk 0:01:32]}  Bxd7 {[%clk 0:02:47]} 9. cxd4 {[%clk 0:00:48]}  e5 {[%clk 0:02:25]} 10. Nf3 {[%clk 0:00:42]}  e4 {[%clk 0:02:19]} 11. Ne5 {[%clk 0:00:31]}  Bb4+ {[%clk 0:02:17]} 12. Bd2 {[%clk 0:00:31]}  Qxd4 {[%clk 0:02:16]} 13. Nxd7 {[%clk 0:00:13]}  Nxd7 {[%clk 0:02:17]} 14. Bxb4 {[%clk 0:00:13]}  Qxb4+ {[%clk 0:02:16]} 15. Qd2 {[%clk 0:00:13]}  Qxd2+ {[%clk 0:02:07]} 16. Kxd2 {[%clk 0:00:14]}  Ke7 {[%clk 0:02:00]} 17. Ke3 {[%clk 0:00:14]}  f5 {[%clk 0:01:57]} 18. Be2 {[%clk 0:00:14]}  Rac8 {[%clk 0:01:54]} 19. Rac1 {[%clk 0:00:14]}  Nf6 {[%clk 0:01:53]} 20. Kf4 {[%clk 0:00:15]}  g6 {[%clk 0:01:50]} 21. h4 {[%clk 0:00:13]}  Nd5+ {[%clk 0:01:42]} 22. Ke5 {[%clk 0:00:13]}  Nb4 {[%clk 0:01:42]} 23. a3 {[%clk 0:00:12]}  Nc6+ {[%clk 0:01:41]} 24. Kf4 {[%clk 0:00:12]}  Nd4 {[%clk 0:01:38]} 25. Bc4 {[%clk 0:00:12]}  Kf6 {[%clk 0:01:36]} 26. g4 {[%clk 0:00:10]}  fxg4 {[%clk 0:01:33]} 27. Kxe4 {[%clk 0:00:11]}  Rhd8 {[%clk 0:01:21]} 28. Kf4 {[%clk 0:00:11]}  h5 {[%clk 0:01:15]} 29. Rhe1 {[%clk 0:00:11]}  b5 {[%clk 0:01:07]} 30. Ba2 {[%clk 0:00:06]}  Rxc1 {[%clk 0:01:07]} 0-1


[Site "https://www.chess.com"]

[Event "Titled Tuesday Blitz January 03 Early 2023"]
[White "Karttunen, Mika"]
[Black "Narayanan.S.L"]
[WhiteFideId "502081"]
[BlackFideId "5058422"]
[WhiteElo "2490"]
[BlackElo "2660"]
[Result "0-1"]
[Round "04"]
[TimeControl "180+2"]
[Date "2023.01.03"]
[WhiteClock "0:00:02"]
[BlackClock "0:00:41"]

1. d4 {[%clk 0:03:00]}  Nf6 {[%clk 0:02:48]} 2. c4 {[%clk 0:03:00]}  g6 {[%clk 0:02:49]} 3. f3 {[%clk 0:02:58]}  Bg7 {[%clk 0:02:49]} 4. e4 {[%clk 0:02:58]}  d6 {[%clk 0:02:49]} 5. Be3 {[%clk 0:02:58]}  O-O {[%clk 0:02:49]} 6. Nc3 {[%clk 0:02:58]}  c5 {[%clk 0:02:50]} 7. Nge2 {[%clk 0:02:57]}  Nc6 {[%clk 0:02:49]} 8. d5 {[%clk 0:02:57]}  Na5 {[%clk 0:02:50]} 9. Ng3 {[%clk 0:02:33]}  a6 {[%clk 0:02:50]} 10. a4 {[%clk 0:02:22]}  Nd7 {[%clk 0:02:50]} 11. Qc2 {[%clk 0:02:18]}  h5 {[%clk 0:02:49]} 12. Bd3 {[%clk 0:02:17]}  Ne5 {[%clk 0:02:48]} 13. Nd1 {[%clk 0:02:06]}  h4 {[%clk 0:02:47]} 14. Ne2 {[%clk 0:02:06]}  h3 {[%clk 0:02:47]} 15. O-O {[%clk 0:01:56]}  hxg2 {[%clk 0:02:47]} 16. Kxg2 {[%clk 0:01:56]}  e6 {[%clk 0:02:44]} 17. f4 {[%clk 0:01:43]}  Ng4 {[%clk 0:02:39]} 18. Bg1 {[%clk 0:01:43]}  exd5 {[%clk 0:02:38]} 19. exd5 {[%clk 0:01:40]}  Qh4 {[%clk 0:02:35]} 20. Rf3 {[%clk 0:01:34]}  Re8 {[%clk 0:02:32]} 21. h3 {[%clk 0:01:28]}  Nh6 {[%clk 0:02:30]} 22. Bf2 {[%clk 0:01:17]}  Qd8 {[%clk 0:02:26]} 23. Ne3 {[%clk 0:01:17]}  f5 {[%clk 0:02:25]} 24. Rg1 {[%clk 0:01:10]}  Qb6 {[%clk 0:02:25]} 25. Nd1 {[%clk 0:01:07]}  Nf7 {[%clk 0:02:12]} 26. Kf1 {[%clk 0:01:07]}  Nh8 {[%clk 0:02:13]} 27. h4 {[%clk 0:01:06]}  Qb3 {[%clk 0:02:12]} 28. Qc1 {[%clk 0:00:51]}  Qb4 {[%clk 0:02:10]} 29. h5 {[%clk 0:00:50]}  Nb3 {[%clk 0:02:10]} 30. Qc2 {[%clk 0:00:35]}  Nd2+ {[%clk 0:02:10]} 31. Kg2 {[%clk 0:00:35]}  Nxf3 {[%clk 0:02:10]} 32. Kxf3 {[%clk 0:00:36]}  Bd7 {[%clk 0:02:08]} 33. hxg6 {[%clk 0:00:32]}  Bxa4 {[%clk 0:02:09]} 34. Qc1 {[%clk 0:00:31]}  Re4 {[%clk 0:02:07]} 35. Bxe4 {[%clk 0:00:26]}  fxe4+ {[%clk 0:02:07]} 36. Kxe4 {[%clk 0:00:26]}  b5 {[%clk 0:02:02]} 37. Ne3 {[%clk 0:00:21]}  bxc4 {[%clk 0:01:58]} 38. Qxc4 {[%clk 0:00:20]}  Bc2+ {[%clk 0:01:39]} 39. Kf3 {[%clk 0:00:20]}  Bxg6 {[%clk 0:01:38]} 40. Qxb4 {[%clk 0:00:18]}  cxb4 {[%clk 0:01:39]} 41. Ng3 {[%clk 0:00:18]}  Nf7 {[%clk 0:01:37]} 42. f5 {[%clk 0:00:18]}  Ne5+ {[%clk 0:01:34]} 43. Ke2 {[%clk 0:00:18]}  Be8 {[%clk 0:01:32]} 44. f6 {[%clk 0:00:18]}  Bxf6 {[%clk 0:01:31]} 45. Nh5+ {[%clk 0:00:17]}  Kf7 {[%clk 0:01:30]} 46. Nxf6 {[%clk 0:00:18]}  Kxf6 {[%clk 0:01:31]} 47. Bh4+ {[%clk 0:00:18]}  Kf7 {[%clk 0:01:32]} 48. Nf5 {[%clk 0:00:18]}  Bb5+ {[%clk 0:01:32]} 49. Ke3 {[%clk 0:00:17]}  Rh8 {[%clk 0:00:47]} 50. Rg7+ {[%clk 0:00:14]}  Kf8 {[%clk 0:00:47]} 51. Be7+ {[%clk 0:00:14]}  Ke8 {[%clk 0:00:48]} 52. Nxd6+ {[%clk 0:00:12]}  Kd7 {[%clk 0:00:48]} 53. Nxb5 {[%clk 0:00:05]}  axb5 {[%clk 0:00:49]} 54. Bxb4+ {[%clk 0:00:03]}  Kc8 {[%clk 0:00:50]} 55. Bc3 {[%clk 0:00:02]}  Nd7 {[%clk 0:00:45]} 56. Rg3 {[%clk 0:00:01]}  Rh4 {[%clk 0:00:43]} 57. d6 {[%clk 0:00:01]}  Kb7 {[%clk 0:00:42]} 58. Ba5 {[%clk 0:00:02]}  Kc6 {[%clk 0:00:42]} 59. Bc7 {[%clk 0:00:02]}  b4 {[%clk 0:00:41]} 60. Kd2 {[%clk 0:00:02]}  Nc5 {[%clk 0:00:41]} 61. Rg5 {[%clk 0:00:02]}  Ne4+ {[%clk 0:00:41]} 0-1


[Site "https://www.chess.com"]

[Event "Titled Tuesday Blitz January 03 Early 2023"]
[White "Timofeev, Artyom"]
[Black "Maevsky, Nikolay"]
[WhiteFideId "4140419"]
[BlackFideId "4198220"]
[WhiteElo "2567"]
[BlackElo "2277"]
[Result "1-0"]
[Round "04"]
[TimeControl "180+2"]
[Date "2023.01.03"]
[WhiteClock "0:00:47"]
[BlackClock "0:00:19"]

1. d4 {[%clk 0:03:00]}  d5 {[%clk 0:02:59]} 2. Nc3 {[%clk 0:03:00]}  c6 {[%clk 0:02:59]} 3. Bf4 {[%clk 0:02:57]}  Bf5 {[%clk 0:02:59]} 4. e3 {[%clk 0:02:57]}  e6 {[%clk 0:02:59]} 5. g4 {[%clk 0:02:55]}  Bg6 {[%clk 0:02:59]} 6. Nf3 {[%clk 0:02:51]}  Nf6 {[%clk 0:02:57]} 7. Ne5 {[%clk 0:02:50]}  Nfd7 {[%clk 0:02:57]} 8. h4 {[%clk 0:02:36]}  Nxe5 {[%clk 0:02:53]} 9. Bxe5 {[%clk 0:02:36]}  h5 {[%clk 0:02:53]} 10. Bd3 {[%clk 0:02:33]}  Bxd3 {[%clk 0:02:49]} 11. cxd3 {[%clk 0:02:32]}  hxg4 {[%clk 0:02:40]} 12. Qxg4 {[%clk 0:02:32]}  Nd7 {[%clk 0:02:39]} 13. O-O-O {[%clk 0:02:27]}  Qe7 {[%clk 0:02:17]} 14. Kb1 {[%clk 0:02:22]}  Nxe5 {[%clk 0:02:09]} 15. dxe5 {[%clk 0:02:22]}  O-O-O {[%clk 0:02:04]} 16. d4 {[%clk 0:02:21]}  Kb8 {[%clk 0:01:54]} 17. h5 {[%clk 0:02:19]}  Rh7 {[%clk 0:01:51]} 18. f4 {[%clk 0:02:17]}  Qd7 {[%clk 0:01:50]} 19. Rdf1 {[%clk 0:02:14]}  Bb4 {[%clk 0:01:50]} 20. Ne2 {[%clk 0:02:11]}  Rdh8 {[%clk 0:01:48]} 21. Ng3 {[%clk 0:02:04]}  c5 {[%clk 0:01:45]} 22. f5 {[%clk 0:02:03]}  c4 {[%clk 0:01:41]} 23. fxe6 {[%clk 0:01:59]}  fxe6 {[%clk 0:01:41]} 24. Ne2 {[%clk 0:01:53]}  Bd2 {[%clk 0:01:31]} 25. Rh3 {[%clk 0:01:50]}  c3 {[%clk 0:01:29]} 26. bxc3 {[%clk 0:01:37]}  Rc8 {[%clk 0:01:06]} 27. Kc2 {[%clk 0:01:23]}  Bxc3 {[%clk 0:01:06]} 28. Nxc3 {[%clk 0:01:22]}  Qa4+ {[%clk 0:00:52]} 29. Kd2 {[%clk 0:01:20]}  Rxc3 {[%clk 0:00:47]} 30. Rf8+ {[%clk 0:01:16]}  Rc8 {[%clk 0:00:38]} 31. Rxc8+ {[%clk 0:01:15]}  Kxc8 {[%clk 0:00:39]} 32. Qxe6+ {[%clk 0:01:16]}  Kc7 {[%clk 0:00:39]} 33. Qxd5 {[%clk 0:01:09]}  Qb4+ {[%clk 0:00:35]} 34. Ke2 {[%clk 0:01:07]}  Qb2+ {[%clk 0:00:31]} 35. Kf3 {[%clk 0:01:07]}  Qd2 {[%clk 0:00:26]} 36. Rh1 {[%clk 0:00:55]}  b6 {[%clk 0:00:21]} 37. Qf7+ {[%clk 0:00:50]}  Kc6 {[%clk 0:00:21]} 38. Qg6+ {[%clk 0:00:49]}  Kd5 {[%clk 0:00:20]} 39. Qe4+ {[%clk 0:00:48]}  Ke6 {[%clk 0:00:19]} 40. Qxh7 {[%clk 0:00:47]} 1-0


[Site "https://www.chess.com"]

[Event "Titled Tuesday Blitz January 03 Early 2023"]
[White "Terry, Renato"]
[Black "Cnejev, Vladimir-Alexandru"]
[WhiteFideId "3803457"]
[BlackFideId "1260898"]
[WhiteElo "2520"]
[BlackElo "2374"]
[Result "1-0"]
[Round "04"]
[TimeControl "180+2"]
[Date "2023.01.03"]
[WhiteClock "0:01:29"]
[BlackClock "0:00:03"]

1. e4 {[%clk 0:03:00]}  e5 {[%clk 0:02:59]} 2. Nf3 {[%clk 0:03:01]}  Nc6 {[%clk 0:02:59]} 3. c3 {[%clk 0:03:01]}  d5 {[%clk 0:02:58]} 4. Qa4 {[%clk 0:03:01]}  f6 {[%clk 0:02:52]} 5. d3 {[%clk 0:02:59]}  Be6 {[%clk 0:02:49]} 6. Nbd2 {[%clk 0:02:58]}  Ne7 {[%clk 0:02:43]} 7. Be2 {[%clk 0:02:55]}  Qd7 {[%clk 0:02:43]} 8. b4 {[%clk 0:02:50]}  g5 {[%clk 0:02:38]} 9. b5 {[%clk 0:02:31]}  Nd8 {[%clk 0:02:38]} 10. d4 {[%clk 0:02:32]}  g4 {[%clk 0:02:36]} 11. Nh4 {[%clk 0:02:32]}  exd4 {[%clk 0:02:23]} 12. cxd4 {[%clk 0:02:31]}  Nf7 {[%clk 0:01:59]} 13. O-O {[%clk 0:02:26]}  Ng6 {[%clk 0:01:41]} 14. Nf5 {[%clk 0:02:18]}  h5 {[%clk 0:01:18]} 15. Re1 {[%clk 0:02:14]}  Bxf5 {[%clk 0:00:44]} 16. exf5 {[%clk 0:02:14]}  Ne7 {[%clk 0:00:44]} 17. Bd3 {[%clk 0:02:04]}  Nd6 {[%clk 0:00:29]} 18. Nb3 {[%clk 0:02:04]}  b6 {[%clk 0:00:27]} 19. Bf4 {[%clk 0:02:01]}  Bg7 {[%clk 0:00:17]} 20. Bxd6 {[%clk 0:01:58]}  Qxd6 {[%clk 0:00:18]} 21. Re6 {[%clk 0:01:58]}  Qd7 {[%clk 0:00:15]} 22. Rae1 {[%clk 0:01:58]}  Bf8 {[%clk 0:00:14]} 23. Rxf6 {[%clk 0:01:58]}  Kd8 {[%clk 0:00:11]} 24. Rfe6 {[%clk 0:01:56]}  Ng8 {[%clk 0:00:10]} 25. f6 {[%clk 0:01:54]}  Rh6 {[%clk 0:00:09]} 26. Bf5 {[%clk 0:01:52]}  Qf7 {[%clk 0:00:07]} 27. Na5 {[%clk 0:01:39]}  bxa5 {[%clk 0:00:06]} 28. b6 {[%clk 0:01:40]}  Nxf6 {[%clk 0:00:04]} 29. bxc7+ {[%clk 0:01:38]}  Kxc7 {[%clk 0:00:05]} 30. Qc6+ {[%clk 0:01:35]}  Kb8 {[%clk 0:00:03]} 31. Rxf6 {[%clk 0:01:28]}  Rxf6 {[%clk 0:00:03]} 32. Qc8# {[%clk 0:01:29]} 1-0


[Site "https://www.chess.com"]

[Event "Titled Tuesday Blitz January 03 Early 2023"]
[White "Grigoriants, Sergey"]
[Black "Gascon Del Nogal, Jose Rafael"]
[WhiteFideId "4130804"]
[BlackFideId "3902463"]
[WhiteElo "2562"]
[BlackElo "2459"]
[Result "1-0"]
[Round "04"]
[TimeControl "180+2"]
[Date "2023.01.03"]
[WhiteClock "0:00:10"]
[BlackClock "0:00:03"]

1. e4 {[%clk 0:02:49]}  c5 {[%clk 0:02:59]} 2. Nf3 {[%clk 0:02:48]}  d6 {[%clk 0:02:59]} 3. d4 {[%clk 0:02:49]}  cxd4 {[%clk 0:03:00]} 4. Nxd4 {[%clk 0:02:49]}  Nf6 {[%clk 0:03:01]} 5. Nc3 {[%clk 0:02:50]}  Nc6 {[%clk 0:03:01]} 6. Bg5 {[%clk 0:02:46]}  e6 {[%clk 0:03:00]} 7. Qd2 {[%clk 0:02:44]}  a6 {[%clk 0:02:58]} 8. Nxc6 {[%clk 0:02:33]}  bxc6 {[%clk 0:02:54]} 9. O-O-O {[%clk 0:02:33]}  h6 {[%clk 0:02:26]} 10. Bf4 {[%clk 0:02:24]}  d5 {[%clk 0:02:25]} 11. Be2 {[%clk 0:02:24]}  Bb4 {[%clk 0:02:23]} 12. Qe3 {[%clk 0:02:24]}  Qa5 {[%clk 0:02:15]} 13. Be5 {[%clk 0:02:20]}  d4 {[%clk 0:02:00]} 14. Bxd4 {[%clk 0:02:02]}  Rb8 {[%clk 0:01:37]} 15. Qg3 {[%clk 0:01:15]}  Qg5+ {[%clk 0:01:17]} 16. f4 {[%clk 0:01:15]}  Qxg3 {[%clk 0:01:16]} 17. hxg3 {[%clk 0:01:16]}  Bb7 {[%clk 0:00:46]} 18. a3 {[%clk 0:00:59]}  Be7 {[%clk 0:00:45]} 19. Bf3 {[%clk 0:00:55]}  c5 {[%clk 0:00:37]} 20. Be5 {[%clk 0:00:51]}  Rc8 {[%clk 0:00:36]} 21. Bd6 {[%clk 0:00:51]}  Nd7 {[%clk 0:00:21]} 22. e5 {[%clk 0:00:47]}  Bxf3 {[%clk 0:00:19]} 23. gxf3 {[%clk 0:00:48]}  Rc6 {[%clk 0:00:14]} 24. Ne4 {[%clk 0:00:47]}  f5 {[%clk 0:00:14]} 25. exf6 {[%clk 0:00:46]}  gxf6 {[%clk 0:00:13]} 26. Bxe7 {[%clk 0:00:34]}  Kxe7 {[%clk 0:00:14]} 27. g4 {[%clk 0:00:34]}  c4 {[%clk 0:00:13]} 28. Rh5 {[%clk 0:00:31]}  Rb6 {[%clk 0:00:13]} 29. g5 {[%clk 0:00:20]}  fxg5 {[%clk 0:00:11]} 30. fxg5 {[%clk 0:00:20]}  e5 {[%clk 0:00:09]} 31. Rdh1 {[%clk 0:00:15]}  Rhb8 {[%clk 0:00:08]} 32. gxh6 {[%clk 0:00:10]}  Rxb2 {[%clk 0:00:07]} 33. h7 {[%clk 0:00:10]}  Rb1+ {[%clk 0:00:06]} 34. Kd2 {[%clk 0:00:10]}  Rxh1 {[%clk 0:00:04]} 35. Rxh1 {[%clk 0:00:11]}  Rh8 {[%clk 0:00:05]} 36. Kc3 {[%clk 0:00:11]}  Nb6 {[%clk 0:00:03]} 37. Kb4 {[%clk 0:00:10]} 1-0


[Site "https://www.chess.com"]

[Event "Titled Tuesday Blitz January 03 Early 2023"]
[White "Florescu, Codrut-Constantin"]
[Black "Ibarra Jerez, Jose Carlos"]
[WhiteFideId "1202200"]
[BlackFideId "2226332"]
[WhiteElo "2259"]
[BlackElo "2563"]
[Result "0-1"]
[Round "04"]
[TimeControl "180+2"]
[Date "2023.01.03"]
[WhiteClock "0:00:37"]
[BlackClock "0:00:38"]

1. e4 {[%clk 0:03:00]}  c5 {[%clk 0:02:59]} 2. Nf3 {[%clk 0:02:59]}  e6 {[%clk 0:02:58]} 3. d4 {[%clk 0:02:59]}  cxd4 {[%clk 0:02:59]} 4. Nxd4 {[%clk 0:03:00]}  Bc5 {[%clk 0:02:59]} 5. Nb3 {[%clk 0:02:59]}  Bb6 {[%clk 0:02:59]} 6. Bd3 {[%clk 0:02:58]}  Ne7 {[%clk 0:03:00]} 7. O-O {[%clk 0:02:55]}  O-O {[%clk 0:03:00]} 8. c4 {[%clk 0:02:50]}  f5 {[%clk 0:03:01]} 9. exf5 {[%clk 0:02:45]}  Nxf5 {[%clk 0:03:01]} 10. c5 {[%clk 0:02:43]}  Bc7 {[%clk 0:03:01]} 11. g3 {[%clk 0:02:42]}  Nc6 {[%clk 0:03:00]} 12. Nc3 {[%clk 0:02:41]}  b6 {[%clk 0:03:01]} 13. Ne4 {[%clk 0:02:34]}  Bb7 {[%clk 0:02:57]} 14. Qh5 {[%clk 0:02:31]}  Ne5 {[%clk 0:02:54]} 15. Bc2 {[%clk 0:02:24]}  g6 {[%clk 0:02:53]} 16. Qh3 {[%clk 0:02:22]}  Nf3+ {[%clk 0:02:50]} 17. Kg2 {[%clk 0:02:19]}  N5d4 {[%clk 0:02:19]} 18. Nxd4 {[%clk 0:02:11]}  Nxd4 {[%clk 0:02:19]} 19. Bd3 {[%clk 0:02:11]}  bxc5 {[%clk 0:02:19]} 20. Be3 {[%clk 0:02:01]}  Qe7 {[%clk 0:02:00]} 21. f3 {[%clk 0:02:00]}  Rf5 {[%clk 0:01:46]} 22. Nd2 {[%clk 0:01:54]}  Rh5 {[%clk 0:01:40]} 23. Qg4 {[%clk 0:01:54]}  Nf5 {[%clk 0:01:32]} 24. Bf2 {[%clk 0:01:52]}  Rf8 {[%clk 0:01:30]} 25. Be4 {[%clk 0:01:46]}  d5 {[%clk 0:01:29]} 26. Bc2 {[%clk 0:01:42]}  c4 {[%clk 0:01:28]} 27. Rae1 {[%clk 0:01:38]}  Qf6 {[%clk 0:01:28]} 28. b3 {[%clk 0:01:35]}  Rg5 {[%clk 0:01:26]} 29. Qh3 {[%clk 0:01:32]}  Ba5 {[%clk 0:01:24]} 30. Re2 {[%clk 0:01:28]}  c3 {[%clk 0:01:20]} 31. b4 {[%clk 0:01:23]}  Bb6 {[%clk 0:01:16]} 32. Nb3 {[%clk 0:01:20]}  Ba6 {[%clk 0:00:58]} 33. Bxb6 {[%clk 0:01:12]}  Bxe2 {[%clk 0:00:58]} 34. Bc5 {[%clk 0:00:58]}  Bxf1+ {[%clk 0:00:56]} 35. Kxf1 {[%clk 0:00:59]}  Nxg3+ {[%clk 0:00:40]} 36. Ke1 {[%clk 0:00:44]}  Re5+ {[%clk 0:00:39]} 37. Kd1 {[%clk 0:00:37]}  Qxf3+ {[%clk 0:00:39]} 38. Kc1 {[%clk 0:00:37]}  Re1+ {[%clk 0:00:38]} 0-1


[Site "https://www.chess.com"]

[Event "Titled Tuesday Blitz January 03 Early 2023"]
[White "Tactrics"]
[Black "Mihajlov, Sebastian"]
[BlackFideId "1512110"]
[WhiteElo "2846"]
[BlackElo "2373"]
[Result "1-0"]
[Round "04"]
[TimeControl "180+2"]
[Date "2023.01.03"]
[WhiteClock "0:00:09"]
[BlackClock "0:00:01"]

1. e4 {[%clk 0:03:00]}  e5 {[%clk 0:02:59]} 2. Nf3 {[%clk 0:03:00]}  Nc6 {[%clk 0:02:59]} 3. Bc4 {[%clk 0:02:59]}  Bc5 {[%clk 0:02:59]} 4. d3 {[%clk 0:03:00]}  Nf6 {[%clk 0:03:00]} 5. c3 {[%clk 0:02:58]}  O-O {[%clk 0:03:00]} 6. O-O {[%clk 0:02:58]}  d5 {[%clk 0:03:00]} 7. exd5 {[%clk 0:02:57]}  Nxd5 {[%clk 0:03:01]} 8. h3 {[%clk 0:02:57]}  Nb6 {[%clk 0:02:42]} 9. Bb5 {[%clk 0:02:56]}  f6 {[%clk 0:02:42]} 10. Re1 {[%clk 0:02:53]}  Bf5 {[%clk 0:02:33]} 11. a4 {[%clk 0:02:27]}  a5 {[%clk 0:02:27]} 12. Na3 {[%clk 0:02:25]}  Na7 {[%clk 0:02:24]} 13. d4 {[%clk 0:02:03]}  exd4 {[%clk 0:02:16]} 14. Nxd4 {[%clk 0:02:04]}  Nxb5 {[%clk 0:02:16]} 15. Naxb5 {[%clk 0:01:51]}  Bxd4 {[%clk 0:01:48]} 16. Nxd4 {[%clk 0:01:50]}  Qd7 {[%clk 0:01:14]} 17. Bf4 {[%clk 0:01:45]}  Nd5 {[%clk 0:00:55]} 18. Bg3 {[%clk 0:01:38]}  c6 {[%clk 0:00:50]} 19. c4 {[%clk 0:01:27]}  Nb4 {[%clk 0:00:48]} 20. c5 {[%clk 0:01:17]}  Kh8 {[%clk 0:00:41]} 21. Bd6 {[%clk 0:01:13]}  Rfe8 {[%clk 0:00:41]} 22. Qf3 {[%clk 0:01:13]}  Bg6 {[%clk 0:00:41]} 23. Rad1 {[%clk 0:01:04]}  h6 {[%clk 0:00:38]} 24. Kh2 {[%clk 0:00:59]}  Qf7 {[%clk 0:00:37]} 25. Qg3 {[%clk 0:00:57]}  Kh7 {[%clk 0:00:35]} 26. Bc7 {[%clk 0:00:41]}  Rxe1 {[%clk 0:00:34]} 27. Rxe1 {[%clk 0:00:41]}  Re8 {[%clk 0:00:34]} 28. Rxe8 {[%clk 0:00:40]}  Qxe8 {[%clk 0:00:35]} 29. Bxa5 {[%clk 0:00:40]}  Nd3 {[%clk 0:00:33]} 30. b4 {[%clk 0:00:30]}  Qe4 {[%clk 0:00:28]} 31. Qe3 {[%clk 0:00:27]}  Qd5 {[%clk 0:00:24]} 32. Nf3 {[%clk 0:00:25]}  Qa2 {[%clk 0:00:17]} 33. Nh4 {[%clk 0:00:21]}  Nxf2 {[%clk 0:00:16]} 34. Nxg6 {[%clk 0:00:20]}  Kxg6 {[%clk 0:00:16]} 35. Bc7 {[%clk 0:00:18]}  Qc2 {[%clk 0:00:14]} 36. b5 {[%clk 0:00:16]}  Ne4 {[%clk 0:00:12]} 37. bxc6 {[%clk 0:00:13]}  bxc6 {[%clk 0:00:13]} 38. Bd6 {[%clk 0:00:13]}  Qxa4 {[%clk 0:00:11]} 39. Qf4 {[%clk 0:00:13]}  Qc4 {[%clk 0:00:09]} 40. Qg4+ {[%clk 0:00:13]}  Kh7 {[%clk 0:00:06]} 41. Qf5+ {[%clk 0:00:13]}  Kh8 {[%clk 0:00:05]} 42. Qc8+ {[%clk 0:00:12]}  Kh7 {[%clk 0:00:04]} 43. Qxc6 {[%clk 0:00:12]}  Qd3 {[%clk 0:00:01]} 44. Qd7 {[%clk 0:00:10]}  Qe3 {[%clk 0:00:01]} 45. Qf5+ {[%clk 0:00:09]}  g6 {[%clk 0:00:01]} 46. Qd7+ {[%clk 0:00:09]}  Kh8 {[%clk 0:00:01]} 47. c6 {[%clk 0:00:09]} 1-0


[Site "https://www.chess.com"]

[Event "Titled Tuesday Blitz January 03 Early 2023"]
[White "Nigmatov, Ortik"]
[Black "Graca, Robert"]
[WhiteFideId "14202131"]
[BlackFideId "644943"]
[WhiteElo "2438"]
[BlackElo "2270"]
[Result "1-0"]
[Round "04"]
[TimeControl "180+2"]
[Date "2023.01.03"]
[WhiteClock "0:01:05"]
[BlackClock "0:00:05"]

1. c4 {[%clk 0:03:00]}  Nf6 {[%clk 0:02:59]} 2. Nf3 {[%clk 0:02:58]}  c5 {[%clk 0:02:58]} 3. g3 {[%clk 0:02:57]}  d5 {[%clk 0:02:58]} 4. cxd5 {[%clk 0:02:57]}  Nxd5 {[%clk 0:02:58]} 5. Bg2 {[%clk 0:02:56]}  Nc6 {[%clk 0:02:59]} 6. d3 {[%clk 0:02:57]}  e5 {[%clk 0:02:58]} 7. O-O {[%clk 0:02:57]}  Be7 {[%clk 0:02:58]} 8. Nc3 {[%clk 0:02:58]}  Nc7 {[%clk 0:02:57]} 9. Bd2 {[%clk 0:02:58]}  O-O {[%clk 0:02:56]} 10. Rc1 {[%clk 0:02:58]}  b6 {[%clk 0:02:56]} 11. a3 {[%clk 0:02:58]}  f6 {[%clk 0:02:47]} 12. Nh4 {[%clk 0:02:45]}  Bb7 {[%clk 0:02:30]} 13. b4 {[%clk 0:02:44]}  Rb8 {[%clk 0:02:17]} 14. Ne4 {[%clk 0:02:20]}  cxb4 {[%clk 0:02:05]} 15. Qb3+ {[%clk 0:02:17]}  Kh8 {[%clk 0:02:04]} 16. axb4 {[%clk 0:02:14]}  f5 {[%clk 0:02:01]} 17. Ng5 {[%clk 0:02:02]}  Bxg5 {[%clk 0:01:26]} 18. Bxg5 {[%clk 0:02:01]}  Qxg5 {[%clk 0:01:12]} 19. Bxc6 {[%clk 0:02:00]}  Bxc6 {[%clk 0:01:12]} 20. Rxc6 {[%clk 0:02:01]}  Nb5 {[%clk 0:01:10]} 21. Nf3 {[%clk 0:02:01]}  Qe7 {[%clk 0:01:06]} 22. Qd5 {[%clk 0:01:59]}  a6 {[%clk 0:00:56]} 23. Nxe5 {[%clk 0:01:25]}  Rbd8 {[%clk 0:00:41]} 24. Qe6 {[%clk 0:01:25]}  Qxe6 {[%clk 0:00:27]} 25. Rxe6 {[%clk 0:01:26]}  Rde8 {[%clk 0:00:27]} 26. Rxe8 {[%clk 0:01:22]}  Rxe8 {[%clk 0:00:28]} 27. f4 {[%clk 0:01:22]}  Nd4 {[%clk 0:00:25]} 28. Kf2 {[%clk 0:01:21]}  Rc8 {[%clk 0:00:25]} 29. Ra1 {[%clk 0:01:17]}  Rc2 {[%clk 0:00:16]} 30. Ke3 {[%clk 0:01:17]}  Nxe2 {[%clk 0:00:13]} 31. Rxa6 {[%clk 0:01:17]}  g6 {[%clk 0:00:13]} 32. Rxb6 {[%clk 0:01:17]}  Nc3 {[%clk 0:00:14]} 33. Rb8+ {[%clk 0:01:15]}  Kg7 {[%clk 0:00:14]} 34. Rb7+ {[%clk 0:01:16]}  Kg8 {[%clk 0:00:14]} 35. Nd7 {[%clk 0:01:14]}  Rb2 {[%clk 0:00:11]} 36. Nf6+ {[%clk 0:01:14]}  Kf8 {[%clk 0:00:12]} 37. Kd4 {[%clk 0:01:12]}  Ne2+ {[%clk 0:00:09]} 38. Ke5 {[%clk 0:01:12]}  Nc3 {[%clk 0:00:07]} 39. Nxh7+ {[%clk 0:01:09]}  Ke8 {[%clk 0:00:07]} 40. Nf6+ {[%clk 0:01:09]}  Kf8 {[%clk 0:00:06]} 41. h4 {[%clk 0:01:05]}  Re2+ {[%clk 0:00:06]} 42. Kd6 {[%clk 0:01:05]}  Rd2 {[%clk 0:00:06]} 43. d4 {[%clk 0:01:04]}  Rxd4+ {[%clk 0:00:06]} 44. Ke6 {[%clk 0:01:05]}  Rd8 {[%clk 0:00:05]} 45. Rf7# {[%clk 0:01:05]} 1-0


[Site "https://www.chess.com"]